[Event "Late-Titled-Tuesday-Blitz-February-13-2024"]
[Site "Chess.com"]
[Date "2024.02.13"]
[Round "4"]
[White "ChessSkool"]
[Black "ImportedItalianMaple"]
[Result "1-0"]
[WhiteElo "2718"]
[BlackElo "2525"]
[TimeControl "180+1"]
[EndTime "14:39:05 PST"]
[Termination "ChessSkool won on time"]

1. d4 {[%clk 0:02:57.2]} 1... g6 {[%clk 0:02:58.9]} 2. h4 {[%clk 0:02:53.4]}
2... Nf6 {[%clk 0:02:53.8]} 3. Nc3 {[%clk 0:02:50.4]} 3... c5 {[%clk 0:02:45.2]}
4. d5 {[%clk 0:02:50.3]} 4... Bg7 {[%clk 0:02:43.3]} 5. e4 {[%clk 0:02:50.5]}
5... d6 {[%clk 0:02:43.4]} 6. Bb5+ {[%clk 0:02:47.5]} 6... Nbd7 {[%clk
0:02:39.9]} 7. a4 {[%clk 0:02:41.3]} 7... O-O {[%clk 0:02:38.3]} 8. Bf4 {[%clk
0:02:37.9]} 8... Ne5 {[%clk 0:02:28.7]} 9. Be2 {[%clk 0:02:28.2]} 9... h5 {[%clk
0:02:22.5]} 10. Bxe5 {[%clk 0:02:17]} 10... dxe5 {[%clk 0:02:21.5]} 11. Nf3
{[%clk 0:02:17.9]} 11... Ng4 {[%clk 0:02:18.6]} 12. Nd2 {[%clk 0:02:11.8]} 12...
e6 {[%clk 0:02:16.1]} 13. Nc4 {[%clk 0:02:08.5]} 13... exd5 {[%clk 0:02:12.8]}
14. Nxd5 {[%clk 0:02:06.7]} 14... Nf6 {[%clk 0:01:59.7]} 15. Nxf6+ {[%clk
0:01:52.4]} 15... Qxf6 {[%clk 0:01:58]} 16. Ne3 {[%clk 0:01:50.3]} 16... Be6
{[%clk 0:01:32.9]} 17. Bc4 {[%clk 0:01:43.3]} 17... Bxc4 {[%clk 0:01:28.9]} 18.
Nxc4 {[%clk 0:01:44.2]} 18... Rad8 {[%clk 0:01:28.8]} 19. Qe2 {[%clk 0:01:43.1]}
19... Bh6 {[%clk 0:01:15.5]} 20. g3 {[%clk 0:01:34.4]} 20... Rd7 {[%clk
0:01:00.6]} 21. O-O {[%clk 0:01:31.7]} 21... Rfd8 {[%clk 0:01:00.4]} 22. Rad1
{[%clk 0:01:28.4]} 22... Qe6 {[%clk 0:00:57]} 23. b3 {[%clk 0:01:21.1]} 23... b6
{[%clk 0:00:52.5]} 24. Kg2 {[%clk 0:01:06.1]} 24... f6 {[%clk 0:00:49.8]} 25.
Rxd7 {[%clk 0:01:04.5]} 25... Rxd7 {[%clk 0:00:49.3]} 26. Rd1 {[%clk 0:01:02.1]}
26... Kf7 {[%clk 0:00:48.4]} 27. Qf3 {[%clk 0:00:56.6]} 27... Ke7 {[%clk
0:00:43.8]} 28. Rd5 {[%clk 0:00:50.1]} 28... Rxd5 {[%clk 0:00:20.4]} 29. exd5
{[%clk 0:00:50.2]} 29... e4 {[%clk 0:00:20.9]} 30. Qd1 {[%clk 0:00:26.5]} 30...
Qf5 {[%clk 0:00:20.8]} 31. d6+ {[%clk 0:00:22.6]} 31... Kd7 {[%clk 0:00:20]} 32.
c3 {[%clk 0:00:11.6]} 32... Bf8 {[%clk 0:00:20.1]} 33. b4 {[%clk 0:00:10.4]}
33... cxb4 {[%clk 0:00:17.4]} 34. cxb4 {[%clk 0:00:11]} 34... Qe6 {[%clk
0:00:17.8]} 35. Qd4 {[%clk 0:00:10.4]} 35... Bxd6 {[%clk 0:00:17.1]} 36. a5
{[%clk 0:00:07.8]} 36... Ke7 {[%clk 0:00:13.1]} 37. axb6 {[%clk 0:00:07.5]}
37... axb6 {[%clk 0:00:14]} 38. Nxb6 {[%clk 0:00:07]} 38... Be5 {[%clk
0:00:14.3]} 39. Nd5+ {[%clk 0:00:05.9]} 39... Kf7 {[%clk 0:00:13.8]} 40. Qc5
{[%clk 0:00:06.5]} 40... Kg7 {[%clk 0:00:12.7]} 41. b5 {[%clk 0:00:05.9]} 41...
Bd6 {[%clk 0:00:12]} 42. Qc6 {[%clk 0:00:05.9]} 42... f5 {[%clk 0:00:09.6]} 43.
b6 {[%clk 0:00:05.9]} 43... f4 {[%clk 0:00:09.9]} 44. Nxf4 {[%clk 0:00:06.3]}
44... Qg4 {[%clk 0:00:09.2]} 45. Qxe4 {[%clk 0:00:05.5]} 45... Bxf4 {[%clk
0:00:07.6]} 46. Qxf4 {[%clk 0:00:06.4]} 46... Qd7 {[%clk 0:00:07.6]} 47. Qc7
{[%clk 0:00:06.4]} 1-0

[Event "Late-Titled-Tuesday-Blitz-February-13-2024"]
[Site "Chess.com"]
[Date "2024.02.13"]
[Round "4"]
[White "Chemim21"]
[Black "delqate"]
[Result "0-1"]
[WhiteElo "2238"]
[BlackElo "2502"]
[TimeControl "180+1"]
[EndTime "14:39:07 PST"]
[Termination "delqate won on time"]

1. d4 {[%clk 0:03:00.9]} 1... d5 {[%clk 0:02:59.4]} 2. Nf3 {[%clk 0:03:00.7]}
2... Nf6 {[%clk 0:02:58.9]} 3. Bf4 {[%clk 0:03:00.7]} 3... c5 {[%clk 0:02:57.7]}
4. e3 {[%clk 0:03:00.8]} 4... Nc6 {[%clk 0:02:58]} 5. c3 {[%clk 0:03:00.3]} 5...
Qb6 {[%clk 0:02:58.1]} 6. Qb3 {[%clk 0:02:54.3]} 6... c4 {[%clk 0:02:57.5]} 7.
Qc2 {[%clk 0:02:52.6]} 7... Bf5 {[%clk 0:02:56.2]} 8. Qc1 {[%clk 0:02:52.7]}
8... h6 {[%clk 0:02:51.6]} 9. h3 {[%clk 0:02:51.4]} 9... e6 {[%clk 0:02:51]} 10.
Be2 {[%clk 0:02:51.6]} 10... Be7 {[%clk 0:02:48.8]} 11. O-O {[%clk 0:02:51.6]}
11... Qd8 {[%clk 0:02:47.6]} 12. Nbd2 {[%clk 0:02:51.5]} 12... O-O {[%clk
0:02:46.6]} 13. Bd1 {[%clk 0:02:39.2]} 13... b5 {[%clk 0:02:46.2]} 14. Bc2
{[%clk 0:02:39.2]} 14... Bxc2 {[%clk 0:02:43.4]} 15. Qxc2 {[%clk 0:02:39]} 15...
b4 {[%clk 0:02:35.7]} 16. e4 {[%clk 0:02:31]} 16... dxe4 {[%clk 0:02:32.9]} 17.
Nxe4 {[%clk 0:02:29.5]} 17... Nxe4 {[%clk 0:02:33.8]} 18. Qxe4 {[%clk
0:02:29.1]} 18... Qd5 {[%clk 0:02:31.4]} 19. Qe2 {[%clk 0:02:16.3]} 19... a5
{[%clk 0:02:11.6]} 20. Nd2 {[%clk 0:02:08.9]} 20... Rfc8 {[%clk 0:02:05.5]} 21.
Rac1 {[%clk 0:01:21.8]} 21... bxc3 {[%clk 0:02:02]} 22. bxc3 {[%clk 0:01:20.3]}
22... Na7 {[%clk 0:01:55.6]} 23. Rb1 {[%clk 0:01:14.4]} 23... Nb5 {[%clk
0:01:52.9]} 24. Rfc1 {[%clk 0:01:11.4]} 24... a4 {[%clk 0:01:50.4]} 25. Qe4
{[%clk 0:00:55.8]} 25... Ra5 {[%clk 0:01:19.1]} 26. Qxd5 {[%clk 0:00:39.4]}
26... exd5 {[%clk 0:01:20]} 27. Nf3 {[%clk 0:00:36.1]} 27... f6 {[%clk
0:01:17.3]} 28. g4 {[%clk 0:00:34.4]} 28... Kf7 {[%clk 0:01:10.8]} 29. Ne1
{[%clk 0:00:32.2]} 29... Rc6 {[%clk 0:01:01.1]} 30. Ng2 {[%clk 0:00:32]} 30...
Ba3 {[%clk 0:00:52.4]} 31. Rc2 {[%clk 0:00:30.5]} 31... Bd6 {[%clk 0:00:46.2]}
32. Bd2 {[%clk 0:00:23.8]} 32... Rc7 {[%clk 0:00:22.7]} 33. Bc1 {[%clk
0:00:19.7]} 33... Ba3 {[%clk 0:00:21.1]} 34. Ne3 {[%clk 0:00:18.5]} 34... Bxc1
{[%clk 0:00:20.5]} 35. Rcxc1 {[%clk 0:00:17.7]} 35... Na3 {[%clk 0:00:20.2]} 36.
Rb6 {[%clk 0:00:13.9]} 36... Rd7 {[%clk 0:00:14.5]} 37. Nf5 {[%clk 0:00:07.5]}
37... Kg8 {[%clk 0:00:06.4]} 38. Ne3 {[%clk 0:00:07.3]} 38... Kh7 {[%clk
0:00:06.5]} 39. Re1 {[%clk 0:00:07.2]} 39... Rb5 {[%clk 0:00:06.7]} 40. Ra6
{[%clk 0:00:04.8]} 40... Rb1 {[%clk 0:00:03.6]} 41. Rxb1 {[%clk 0:00:03.3]}
41... Nxb1 {[%clk 0:00:04.5]} 42. Ra5 {[%clk 0:00:03.2]} 42... Nxc3 {[%clk
0:00:04.1]} 43. Nf5 {[%clk 0:00:02.3]} 43... Ne2+ {[%clk 0:00:03.5]} 44. Kf1
{[%clk 0:00:01.5]} 44... Nf4 {[%clk 0:00:03.1]} 45. Ne3 {[%clk 0:00:01.8]} 45...
Rb7 {[%clk 0:00:02.9]} 46. Rxa4 {[%clk 0:00:02.7]} 46... Rb1+ {[%clk 0:00:02.8]}
0-1

[Event "Late-Titled-Tuesday-Blitz-February-13-2024"]
[Site "Chess.com"]
[Date "2024.02.13"]
[Round "4"]
[White "akanga001"]
[Black "GoValya"]
[Result "0-1"]
[WhiteElo "2004"]
[BlackElo "2252"]
[TimeControl "180+1"]
[EndTime "14:39:08 PST"]
[Termination "GoValya won on time"]

1. d4 {[%clk 0:03:00.9]} 1... g6 {[%clk 0:02:59.4]} 2. c4 {[%clk 0:02:59.8]}
2... Bg7 {[%clk 0:02:59.2]} 3. Nc3 {[%clk 0:02:58.4]} 3... c5 {[%clk 0:02:59.2]}
4. d5 {[%clk 0:02:57.3]} 4... f5 {[%clk 0:02:58]} 5. Nf3 {[%clk 0:02:55]} 5...
Nf6 {[%clk 0:02:57.6]} 6. g3 {[%clk 0:02:47.8]} 6... d6 {[%clk 0:02:57.5]} 7.
Bg2 {[%clk 0:02:48.7]} 7... O-O {[%clk 0:02:57.2]} 8. O-O {[%clk 0:02:47.2]}
8... a6 {[%clk 0:02:56.7]} 9. a4 {[%clk 0:02:44.9]} 9... e6 {[%clk 0:02:51.5]}
10. e4 {[%clk 0:02:35.8]} 10... fxe4 {[%clk 0:02:42.6]} 11. Ng5 {[%clk
0:02:33.5]} 11... exd5 {[%clk 0:02:42.7]} 12. cxd5 {[%clk 0:02:32.5]} 12... Bf5
{[%clk 0:02:36]} 13. Ngxe4 {[%clk 0:02:31.5]} 13... Nxe4 {[%clk 0:02:34.1]} 14.
Nxe4 {[%clk 0:02:30.6]} 14... Bxe4 {[%clk 0:02:22.5]} 15. Bxe4 {[%clk
0:02:27.3]} 15... Nd7 {[%clk 0:02:23.1]} 16. Qc2 {[%clk 0:02:18.8]} 16... Ne5
{[%clk 0:02:21.9]} 17. Ra3 {[%clk 0:02:14.7]} 17... b5 {[%clk 0:02:12.3]} 18.
axb5 {[%clk 0:02:13.1]} 18... axb5 {[%clk 0:02:13.2]} 19. Rxa8 {[%clk
0:02:07.7]} 19... Qxa8 {[%clk 0:02:14.1]} 20. Bg5 {[%clk 0:02:05]} 20... Qe8
{[%clk 0:01:45.3]} 21. Kg2 {[%clk 0:01:58.3]} 21... Qf7 {[%clk 0:01:35.4]} 22.
h4 {[%clk 0:01:42.4]} 22... Nf3 {[%clk 0:01:25.4]} 23. Be3 {[%clk 0:01:29.1]}
23... Nd4 {[%clk 0:01:18.3]} 24. Qd3 {[%clk 0:01:25.4]} 24... c4 {[%clk
0:01:12.7]} 25. Qd2 {[%clk 0:01:20.1]} 25... Nb3 {[%clk 0:01:09.8]} 26. Qc2
{[%clk 0:01:17.5]} 26... Qf6 {[%clk 0:01:05.7]} 27. Rb1 {[%clk 0:00:57.6]} 27...
Nd4 {[%clk 0:01:00.6]} 28. Qd2 {[%clk 0:00:56.6]} 28... Nf3 {[%clk 0:00:58.3]}
29. Qe2 {[%clk 0:00:52.8]} 29... Ne5 {[%clk 0:00:57.2]} 30. Bg5 {[%clk 0:00:41]}
30... Qf7 {[%clk 0:00:56]} 31. Be3 {[%clk 0:00:36.9]} 31... h5 {[%clk
0:00:55.4]} 32. Qc2 {[%clk 0:00:29.4]} 32... b4 {[%clk 0:00:55]} 33. Qd2 {[%clk
0:00:26.5]} 33... Ng4 {[%clk 0:00:50.7]} 34. f3 {[%clk 0:00:15.2]} 34... c3
{[%clk 0:00:32.6]} 35. bxc3 {[%clk 0:00:13.9]} 35... bxc3 {[%clk 0:00:32.9]} 36.
Qe2 {[%clk 0:00:13.8]} 36... Ne5 {[%clk 0:00:22.7]} 37. Rc1 {[%clk 0:00:11.9]}
37... Rc8 {[%clk 0:00:19.6]} 38. Qc2 {[%clk 0:00:11.6]} 38... Kh8 {[%clk
0:00:14]} 39. Bf4 {[%clk 0:00:11.5]} 39... Nc4 {[%clk 0:00:09]} 40. Bxg6 {[%clk
0:00:10.6]} 40... Qf6 {[%clk 0:00:09.3]} 41. Bg5 {[%clk 0:00:07.9]} 41... Qd4
{[%clk 0:00:08.5]} 42. Bxh5 {[%clk 0:00:04.3]} 42... Ne3+ {[%clk 0:00:08.3]} 43.
Bxe3 {[%clk 0:00:03.8]} 43... Qxe3 {[%clk 0:00:09.2]} 44. Qg6 {[%clk 0:00:03]}
44... Qxc1 {[%clk 0:00:07.8]} 45. Kh3 {[%clk 0:00:03.3]} 45... Qe3 {[%clk
0:00:06.8]} 46. Bg4 {[%clk 0:00:03.7]} 46... Re8 {[%clk 0:00:06.3]} 0-1

[Event "Late-Titled-Tuesday-Blitz-February-13-2024"]
[Site "Chess.com"]
[Date "2024.02.13"]
[Round "4"]
[White "ChessLover0108"]
[Black "Doomfist26"]
[Result "0-1"]
[WhiteElo "2972"]
[BlackElo "2630"]
[TimeControl "180+1"]
[EndTime "14:39:09 PST"]
[Termination "Doomfist26 won on time"]

1. c4 {[%clk 0:03:00.9]} 1... Nf6 {[%clk 0:02:58.6]} 2. Nc3 {[%clk 0:03:01]}
2... g6 {[%clk 0:02:59.1]} 3. e4 {[%clk 0:03:01]} 3... d6 {[%clk 0:02:59.5]} 4.
d4 {[%clk 0:03:01.5]} 4... Bg7 {[%clk 0:03:00.2]} 5. Be2 {[%clk 0:03:02]} 5...
O-O {[%clk 0:02:59.8]} 6. Be3 {[%clk 0:03:02.3]} 6... e5 {[%clk 0:02:57.8]} 7.
d5 {[%clk 0:03:02.5]} 7... Na6 {[%clk 0:02:58.4]} 8. Nf3 {[%clk 0:03:01.3]} 8...
Nc5 {[%clk 0:02:44.4]} 9. Nd2 {[%clk 0:03:01.2]} 9... a5 {[%clk 0:02:45.1]} 10.
a3 {[%clk 0:02:59.1]} 10... a4 {[%clk 0:02:38.7]} 11. Bxc5 {[%clk 0:02:57.5]}
11... dxc5 {[%clk 0:02:39]} 12. Nxa4 {[%clk 0:02:58.4]} 12... b6 {[%clk
0:02:21.5]} 13. b4 {[%clk 0:02:58.3]} 13... Bd7 {[%clk 0:02:14.3]} 14. Nc3
{[%clk 0:02:57]} 14... Qe7 {[%clk 0:02:14.3]} 15. bxc5 {[%clk 0:02:36.4]} 15...
Qxc5 {[%clk 0:02:11.8]} 16. a4 {[%clk 0:02:29.3]} 16... c6 {[%clk 0:02:05.4]}
17. O-O {[%clk 0:02:19.3]} 17... cxd5 {[%clk 0:02:04.9]} 18. exd5 {[%clk
0:02:01.9]} 18... Rfc8 {[%clk 0:01:47.1]} 19. Nb5 {[%clk 0:01:52.9]} 19... e4
{[%clk 0:01:26.8]} 20. Qb3 {[%clk 0:01:39.5]} 20... Bxb5 {[%clk 0:01:21.7]} 21.
cxb5 {[%clk 0:01:27.1]} 21... Qxd5 {[%clk 0:01:16.8]} 22. Nc4 {[%clk 0:01:26.9]}
22... Qe6 {[%clk 0:01:08.6]} 23. Rac1 {[%clk 0:01:20.2]} 23... Nd7 {[%clk
0:01:05.9]} 24. Qa3 {[%clk 0:00:44.5]} 24... Bf8 {[%clk 0:00:58.5]} 25. Qa2
{[%clk 0:00:35.5]} 25... Nc5 {[%clk 0:00:58.1]} 26. a5 {[%clk 0:00:30.4]} 26...
Rxa5 {[%clk 0:00:56.1]} 27. Qb1 {[%clk 0:00:26]} 27... Ra4 {[%clk 0:00:48.4]}
28. Ne3 {[%clk 0:00:26.4]} 28... Rd8 {[%clk 0:00:45.3]} 29. Bc4 {[%clk
0:00:26.8]} 29... Qe5 {[%clk 0:00:39.1]} 30. Rcd1 {[%clk 0:00:26.7]} 30... Rd4
{[%clk 0:00:37.3]} 31. Qc2 {[%clk 0:00:13.7]} 31... h5 {[%clk 0:00:31.8]} 32. g3
{[%clk 0:00:12.9]} 32... Rxd1 {[%clk 0:00:25.6]} 33. Rxd1 {[%clk 0:00:12.8]}
33... Ra1 {[%clk 0:00:26.1]} 34. Rxa1 {[%clk 0:00:13.1]} 34... Qxa1+ {[%clk
0:00:26.1]} 35. Kg2 {[%clk 0:00:14]} 35... Qd4 {[%clk 0:00:25.1]} 36. Qa2 {[%clk
0:00:08.4]} 36... Qf6 {[%clk 0:00:23.7]} 37. Qa8 {[%clk 0:00:04.4]} 37... Kg7
{[%clk 0:00:20.5]} 38. Qd5 {[%clk 0:00:02.9]} 38... h4 {[%clk 0:00:16.4]} 39.
Kg1 {[%clk 0:00:02.4]} 39... Bd6 {[%clk 0:00:15.2]} 40. Qd1 {[%clk 0:00:02.6]}
40... h3 {[%clk 0:00:15.1]} 41. Bf1 {[%clk 0:00:02.4]} 41... Nd3 {[%clk
0:00:12.7]} 42. Bxd3 {[%clk 0:00:01.7]} 42... exd3 {[%clk 0:00:13.1]} 43. Qxd3
{[%clk 0:00:02.6]} 43... Bc5 {[%clk 0:00:12.2]} 44. Nd1 {[%clk 0:00:03]} 44...
Qa1 {[%clk 0:00:09.8]} 45. Qc3+ {[%clk 0:00:03.2]} 45... Qxc3 {[%clk 0:00:09.2]}
46. Nxc3 {[%clk 0:00:04.1]} 46... Kf6 {[%clk 0:00:09.6]} 47. Kf1 {[%clk
0:00:04.1]} 47... Ke5 {[%clk 0:00:10.2]} 48. Ke2 {[%clk 0:00:04.2]} 48... Kd4
{[%clk 0:00:10.8]} 49. Nd1 {[%clk 0:00:01.4]} 49... Kc4 {[%clk 0:00:11]} 50. Kf3
{[%clk 0:00:01.1]} 50... Kxb5 {[%clk 0:00:11.1]} 0-1

[Event "Late-Titled-Tuesday-Blitz-February-13-2024"]
[Site "Chess.com"]
[Date "2024.02.13"]
[Round "4"]
[White "Hirna2005"]
[Black "HandKnit"]
[Result "0-1"]
[WhiteElo "2308"]
[BlackElo "2515"]
[TimeControl "180+1"]
[EndTime "14:39:11 PST"]
[Termination "HandKnit won by resignation"]

1. e4 {[%clk 0:03:00.9]} 1... c5 {[%clk 0:02:58.5]} 2. c3 {[%clk 0:03:00.8]}
2... d5 {[%clk 0:02:57.9]} 3. exd5 {[%clk 0:03:00.4]} 3... Qxd5 {[%clk
0:02:58.8]} 4. Nf3 {[%clk 0:03:00.6]} 4... Nf6 {[%clk 0:02:58.6]} 5. Na3 {[%clk
0:03:00]} 5... a6 {[%clk 0:02:45.8]} 6. Bc4 {[%clk 0:02:52.2]} 6... Qd8 {[%clk
0:02:45.4]} 7. d4 {[%clk 0:02:51.3]} 7... cxd4 {[%clk 0:02:29.9]} 8. Ne5 {[%clk
0:02:44.9]} 8... e6 {[%clk 0:02:28.7]} 9. Qa4+ {[%clk 0:02:43.2]} 9... Bd7
{[%clk 0:02:20.2]} 10. Nxd7 {[%clk 0:02:41.9]} 10... Nbxd7 {[%clk 0:02:15.2]}
11. Qb3 {[%clk 0:02:28.9]} 11... b5 {[%clk 0:02:12.7]} 12. Be2 {[%clk
0:02:27.9]} 12... dxc3 {[%clk 0:02:00.1]} 13. bxc3 {[%clk 0:02:27.6]} 13... Bc5
{[%clk 0:01:52.3]} 14. O-O {[%clk 0:02:23.4]} 14... O-O {[%clk 0:01:51.4]} 15.
Bg5 {[%clk 0:02:19.5]} 15... Qb6 {[%clk 0:01:50.5]} 16. Rab1 {[%clk 0:02:10.1]}
16... Rac8 {[%clk 0:01:49.4]} 17. c4 {[%clk 0:01:55.3]} 17... Ne4 {[%clk
0:01:46.1]} 18. Bh4 {[%clk 0:01:51.3]} 18... Nd2 {[%clk 0:01:44.6]} 19. Qh3
{[%clk 0:01:42.2]} 19... Nxb1 {[%clk 0:01:40.1]} 20. Nxb1 {[%clk 0:01:40.2]}
20... bxc4 {[%clk 0:01:32.4]} 21. Bxc4 {[%clk 0:01:39.1]} 21... Bd4 {[%clk
0:01:28.3]} 22. Bd3 {[%clk 0:01:37]} 22... h6 {[%clk 0:01:24.3]} 23. Nd2 {[%clk
0:01:27.7]} 23... Rc3 {[%clk 0:01:18.9]} 24. Ne4 {[%clk 0:01:22.3]} 24... Ra3
{[%clk 0:01:08.7]} 25. Be7 {[%clk 0:01:21.7]} 25... Rxa2 {[%clk 0:01:00.8]} 26.
Bxf8 {[%clk 0:01:09.3]} 26... Nxf8 {[%clk 0:01:01.7]} 27. Kh1 {[%clk 0:00:44.4]}
27... a5 {[%clk 0:00:58.6]} 28. f4 {[%clk 0:00:41.1]} 28... a4 {[%clk
0:00:39.1]} 29. f5 {[%clk 0:00:41.2]} 29... exf5 {[%clk 0:00:38.3]} 30. Qxf5
{[%clk 0:00:40]} 30... Qe6 {[%clk 0:00:34.2]} 31. Qa5 {[%clk 0:00:20.6]} 31...
Qg4 {[%clk 0:00:19.3]} 32. Ng3 {[%clk 0:00:16.2]} 32... Rf2 {[%clk 0:00:17]} 33.
Rxf2 {[%clk 0:00:14]} 33... Bxf2 {[%clk 0:00:17.9]} 34. Bf1 {[%clk 0:00:11.7]}
34... Bxg3 {[%clk 0:00:16.9]} 35. hxg3 {[%clk 0:00:12.1]} 35... Ne6 {[%clk
0:00:15]} 36. Kg1 {[%clk 0:00:11.6]} 36... Qd4+ {[%clk 0:00:14.1]} 37. Kh1
{[%clk 0:00:11.6]} 37... g6 {[%clk 0:00:12.2]} 38. g4 {[%clk 0:00:10.6]} 38...
Qxg4 {[%clk 0:00:10.8]} 39. Qa8+ {[%clk 0:00:10]} 39... Kg7 {[%clk 0:00:10.1]}
40. Kg1 {[%clk 0:00:10.3]} 40... Qd4+ {[%clk 0:00:09.6]} 41. Kh1 {[%clk
0:00:09.6]} 41... Qh4+ {[%clk 0:00:10.5]} 42. Kg1 {[%clk 0:00:09.3]} 42... Qd4+
{[%clk 0:00:10.8]} 43. Kh1 {[%clk 0:00:09.7]} 43... Qb4 {[%clk 0:00:11.3]} 44.
Bd3 {[%clk 0:00:08.3]} 44... a3 {[%clk 0:00:11.2]} 45. Be4 {[%clk 0:00:06.4]}
45... Qe1+ {[%clk 0:00:10.7]} 46. Kh2 {[%clk 0:00:06.8]} 46... Qh4+ {[%clk
0:00:09.5]} 47. Kg1 {[%clk 0:00:07.3]} 47... Qe1+ {[%clk 0:00:08.4]} 48. Kh2
{[%clk 0:00:07.4]} 48... Qc3 {[%clk 0:00:08.1]} 49. Bd5 {[%clk 0:00:06.7]} 49...
Qe5+ {[%clk 0:00:07.1]} 50. Kg1 {[%clk 0:00:06.5]} 50... Nf4 {[%clk 0:00:07.1]}
51. Ba2 {[%clk 0:00:05.4]} 51... Qa1+ {[%clk 0:00:04.3]} 52. Kh2 {[%clk
0:00:05.5]} 52... Qxa2 {[%clk 0:00:04.2]} 53. Qe4 {[%clk 0:00:04.7]} 53... Qxg2+
{[%clk 0:00:04.7]} 54. Qxg2 {[%clk 0:00:03.6]} 54... Nxg2 {[%clk 0:00:05.6]} 55.
Kxg2 {[%clk 0:00:04.2]} 55... a2 {[%clk 0:00:06.5]} 0-1

[Event "Late-Titled-Tuesday-Blitz-February-13-2024"]
[Site "Chess.com"]
[Date "2024.02.13"]
[Round "4"]
[White "Kaua18"]
[Black "Flawless_Fighter"]
[Result "0-1"]
[WhiteElo "2538"]
[BlackElo "2742"]
[TimeControl "180+1"]
[EndTime "14:39:13 PST"]
[Termination "Flawless_Fighter won by checkmate"]

1. e4 {[%clk 0:03:00.9]} 1... c5 {[%clk 0:02:59.7]} 2. Nf3 {[%clk 0:02:56.4]}
2... d6 {[%clk 0:02:59.5]} 3. Nc3 {[%clk 0:02:55.7]} 3... Nf6 {[%clk 0:02:56.8]}
4. d4 {[%clk 0:02:56]} 4... cxd4 {[%clk 0:02:56.9]} 5. Nxd4 {[%clk 0:02:56.9]}
5... a6 {[%clk 0:02:57.2]} 6. Bg5 {[%clk 0:02:55.4]} 6... Nbd7 {[%clk
0:02:51.2]} 7. f4 {[%clk 0:02:53.3]} 7... h6 {[%clk 0:02:40.9]} 8. Bh4 {[%clk
0:02:51.5]} 8... e6 {[%clk 0:02:14.4]} 9. f5 {[%clk 0:02:36.1]} 9... e5 {[%clk
0:01:49.1]} 10. Nf3 {[%clk 0:02:32.4]} 10... Be7 {[%clk 0:01:49]} 11. Bc4 {[%clk
0:02:27.7]} 11... b5 {[%clk 0:01:44.6]} 12. Bxf6 {[%clk 0:02:07.8]} 12... Nxf6
{[%clk 0:01:40.5]} 13. Bd5 {[%clk 0:02:07]} 13... Rb8 {[%clk 0:01:37.7]} 14. a3
{[%clk 0:02:02.9]} 14... O-O {[%clk 0:01:36.6]} 15. O-O {[%clk 0:02:02.4]} 15...
a5 {[%clk 0:01:33.8]} 16. Qd3 {[%clk 0:01:52.4]} 16... b4 {[%clk 0:01:32.6]} 17.
axb4 {[%clk 0:01:52.2]} 17... axb4 {[%clk 0:01:32.4]} 18. Na4 {[%clk 0:01:48.8]}
18... Nxd5 {[%clk 0:01:26.9]} 19. exd5 {[%clk 0:01:48.4]} 19... Ra8 {[%clk
0:01:19.8]} 20. Rfe1 {[%clk 0:01:40.2]} 20... Ba6 {[%clk 0:01:15.8]} 21. Qe4
{[%clk 0:01:35.7]} 21... Qb8 {[%clk 0:01:04.8]} 22. b3 {[%clk 0:01:32.1]} 22...
Qb5 {[%clk 0:01:00.7]} 23. Nb2 {[%clk 0:01:22.6]} 23... Bb7 {[%clk 0:00:58.5]}
24. Qc4 {[%clk 0:01:07.5]} 24... Qxd5 {[%clk 0:00:49.3]} 25. Qxb4 {[%clk
0:01:06.7]} 25... Bf6 {[%clk 0:00:34.2]} 26. Rad1 {[%clk 0:01:02.6]} 26... Qc6
{[%clk 0:00:26.7]} 27. Nc4 {[%clk 0:00:46.7]} 27... e4 {[%clk 0:00:22.2]} 28.
Nd4 {[%clk 0:00:17.8]} 28... Qc5 {[%clk 0:00:17.2]} 29. Qxb7 {[%clk 0:00:11.1]}
29... Bxd4+ {[%clk 0:00:17.3]} 30. Kh1 {[%clk 0:00:11.7]} 30... d5 {[%clk
0:00:15.6]} 31. Nd2 {[%clk 0:00:03.1]} 31... Rab8 {[%clk 0:00:15.8]} 32. Qa6
{[%clk 0:00:03]} 32... Bc3 {[%clk 0:00:15.2]} 33. Qe2 {[%clk 0:00:03.2]} 33...
Rfe8 {[%clk 0:00:15.1]} 34. Rg1 {[%clk 0:00:02.5]} 34... e3 {[%clk 0:00:15.6]}
35. Nf3 {[%clk 0:00:02.8]} 35... d4 {[%clk 0:00:16.1]} 36. h3 {[%clk 0:00:03.4]}
36... Qxf5 {[%clk 0:00:16.4]} 37. Rd3 {[%clk 0:00:03.1]} 37... Qe4 {[%clk
0:00:16.4]} 38. Rgd1 {[%clk 0:00:03.6]} 38... Rbd8 {[%clk 0:00:16.8]} 39. Kg1
{[%clk 0:00:03.1]} 39... g6 {[%clk 0:00:16.1]} 40. Kh1 {[%clk 0:00:03.7]} 40...
h5 {[%clk 0:00:16.7]} 41. b4 {[%clk 0:00:04.3]} 41... Bxb4 {[%clk 0:00:15.4]}
42. Rxd4 {[%clk 0:00:04.6]} 42... Rxd4 {[%clk 0:00:16.1]} 43. Rxd4 {[%clk
0:00:05.5]} 43... Qb7 {[%clk 0:00:15.4]} 44. Rd3 {[%clk 0:00:03.1]} 44... Bc5
{[%clk 0:00:15.1]} 45. Rc3 {[%clk 0:00:02.9]} 45... Qb6 {[%clk 0:00:13]} 46. Rb3
{[%clk 0:00:03.2]} 46... Qe6 {[%clk 0:00:13.1]} 47. Rc3 {[%clk 0:00:02.8]} 47...
Bf8 {[%clk 0:00:13.2]} 48. Ne1 {[%clk 0:00:02.4]} 48... Bg7 {[%clk 0:00:13.4]}
49. Rd3 {[%clk 0:00:03.1]} 49... Qe4 {[%clk 0:00:12.1]} 50. c3 {[%clk
0:00:03.3]} 50... Qf4 {[%clk 0:00:12]} 51. Nc2 {[%clk 0:00:03.4]} 51... Be5
{[%clk 0:00:12.7]} 52. Kg1 {[%clk 0:00:03.1]} 52... Qh2+ {[%clk 0:00:12.6]} 53.
Kf1 {[%clk 0:00:03.7]} 53... Qh1# {[%clk 0:00:12.7]} 0-1